fUST/lending_fUST_20240205
["ID","MTS","AMOUNT","RATE_DAILY","PERIOD"]
[313301378,1707124241743,-2233.19520535,0.00024657,2]
[313301417,1707124243633,-4596.23751463,0.00024657,2]
[313301418,1707124243645,-3575.85750908,0.00024657,2]
[313301463,1707125431715,-316.15413216,0.00021937,2]
[313301464,1707125431725,-166.666666,0.00021938,2]
[313301465,1707125431734,-55.69663829,0.00022317,2]
[313301466,1707125431746,-618.09274011,0.00022317,2]
[313301467,1707125431768,-7304.81702861,0.00022317,2]
[313301468,1707125431777,-5938.9165914,0.00022318,2]
[313301469,1707125431788,-3402.29946369,0.00022318,2]
[313301493,1707125439100,-5644.92204341,0.00022318,2]
[313301494,1707125439109,-613.39230591,0.00022546,2]
[313301495,1707125439118,-192.830686,0.00022646,2]
[313301496,1707125439127,-502.7264543,0.00023,2]
[313301498,1707125439136,-644.54302014,0.00023094,2]
[313301500,1707125439144,-4303.80075968,0.00023095,2]
[313301502,1707125439153,-503.43200695,0.00023095,2]
[313301504,1707125439161,-352.473,0.00024164,4]
[313301506,1707125439170,-352.474,0.00024164,4]
[313301508,1707125439179,-352.474,0.00024164,4]
[313301510,1707125439188,-352.474,0.00024164,4]
[313301512,1707125439197,-352.474,0.00024164,4]
[313301514,1707125439206,-1881.24,0.00024647,3]
[313301515,1707125439214,-2008.43,0.00024647,3]
[313301517,1707125439223,-5219.85027609,0.00024655,2]
[313301519,1707125439232,-426.88835692,0.00024655,2]
[313301522,1707125439242,-1434.69165019,0.00024655,2]
[313301523,1707125439250,-151.0,0.00024655,2]
[313301526,1707125439259,-3977.44618093,0.00024656,2]
[313301527,1707125439268,-500.0,0.00024656,2]
[313301528,1707125439277,-500.0,0.00024656,2]
[313301529,1707125439286,-563.99094727,0.00024656,2]
[313301530,1707125439294,-151.0,0.00024656,2]
[313301531,1707125439304,-151.0,0.00024656,2]
[313301532,1707125439312,-246.701892,0.00024656,2]
[313301533,1707125439321,-41114.77771186,0.00024657,2]
[313301534,1707125439333,-2592.82331226,0.00024657,2]
[313301535,1707125439345,-518.86274928,0.00024657,2]
[313301710,1707126638055,-367.9109137,0.0002219,2]
[313301827,1707126643017,-617.83904742,0.0002219,2]
[313301829,1707126643027,-531.25597505,0.00022557,2]
[313301831,1707126643036,-5.92543991,0.00023094,2]
[313301833,1707126643048,-3004.93446458,0.00023094,2]
[313301835,1707126643057,-2218.0503379,0.00023454,2]
[313301837,1707126643066,-536.71826768,0.00024557,2]
[313301839,1707126643075,-1762.27,0.00024647,3]
[313301841,1707126643084,-312.82183209,0.00024647,3]
[313302086,1707126834936,4306.45013022,0.0001631,2]
[313302088,1707126867832,1012.94789233,0.0001631,2]
[313302089,1707126878269,168975.21958907,0.0001631,2]
[313302090,1707126878296,116130.36482214,0.0001631,2]
[313302091,1707126881820,1012.94789233,0.0001631,2]
[313302092,1707126894245,32856.68728553,0.0001631,2]
[313302093,1707126894277,10000.0,0.0001631,2]
[313302094,1707126894305,10000.0,0.0001631,2]
[313302095,1707126894332,10000.0,0.0001631,2]
[313302096,1707126894359,10000.0,0.0001631,2]
[313302097,1707126894387,15000.0,0.0001631,2]
[313302098,1707126894414,10000.0,0.0001631,2]
[313302099,1707126894441,20000.0,0.0001631,2]
[313302140,1707127832080,-3259.3348352,0.0001631,2]
[313302144,1707127832139,-4370.41728601,0.0001631,2]
[313302146,1707127832150,-992.8914181,0.0001631,2]
[313302517,1707127841405,-401.62755979,0.0001631,2]
[313302519,1707127841415,-1012.94789233,0.0001631,2]
[313302521,1707127841424,-200.0,0.0001794,2]
[313302522,1707127841433,-354.17065003,0.000189,2]
[313302524,1707127841443,-1586.31930013,0.00019733,2]
[313302526,1707127841453,-280.0,0.00019734,2]
[313302528,1707127841462,-391.0,0.00021707,7]
[313302530,1707127841472,-4854.1757294,0.00021884,2]
[313302532,1707127841481,-7443.59437014,0.0002259,2]
[313302533,1707127841491,-752.71497612,0.00023094,2]
[313302534,1707127841500,-200.0,0.00023878,7]
[313302535,1707127841510,-348.0,0.00023878,7]
[313302536,1707127841519,-354.17065003,0.000239,2]
[313302537,1707127841529,-997.3,0.00024647,3]
[313302538,1707127841540,-162.84486275,0.00024655,2]
[313302539,1707127841550,-1764.51810886,0.00024655,2]
[313302540,1707127841560,-155.02170304,0.00024655,2]
[313302541,1707127841570,-1200.7118793,0.00024655,2]
[313302542,1707127841581,-500.0,0.00024655,2]
[313302543,1707127841591,-326.17134224,0.00024655,2]
[313302544,1707127841601,-1893.52994018,0.00024656,2]
[313302545,1707127841610,-500.0,0.00024657,2]
[313302546,1707127841621,-500.0,0.00024657,2]
[313302548,1707127841631,-155.57683824,0.00024657,2]
[313302550,1707127841641,-500.0,0.00024657,2]
[313302552,1707127841650,-267.78809075,0.00024657,2]
[313302554,1707127841659,-500.0,0.00024657,2]
[313302556,1707127841668,-151.0,0.00024657,2]
[313302558,1707127841678,-151.0,0.00024657,2]
[313302560,1707127841687,-151.0,0.00024657,2]
[313302562,1707127841696,-151.0,0.00024657,2]
[313302564,1707127841705,-151.0,0.00024657,2]
[313302566,1707127841714,-151.0,0.00024657,2]
[313302568,1707127841724,-151.0,0.00024657,2]
[313302570,1707127841733,-151.0,0.00024657,2]
[313302572,1707127841743,-151.0,0.00024657,2]
[313302574,1707127841752,-151.0,0.00024657,2]
[313302576,1707127841762,-151.0,0.00024657,2]
[313302578,1707127841771,-151.0,0.00024657,2]
[313302580,1707127841780,-151.0,0.00024657,2]
[313302582,1707127841790,-183.533113,0.00024657,2]
[313302584,1707127841800,-500.0,0.00024657,2]
[313302586,1707127841809,-192.92095087,0.00024657,2]
[313302588,1707127841819,-525.68971764,0.00024657,2]
[313302590,1707127841829,-321.86703028,0.00024657,2]
[313302592,1707127841838,-551.70512135,0.00024657,2]
[313302594,1707127841847,-500.0,0.00024657,2]
[313302595,1707127841856,-500.0,0.00024657,2]
[313302597,1707127841865,-500.0,0.00024657,2]
[313302599,1707127841875,-500.0,0.00024657,2]
[313302602,1707127841887,-500.0,0.00024657,2]
[313302604,1707127841896,-500.0,0.00024657,2]
[313302606,1707127841905,-505.07426409,0.00024657,2]
[313302607,1707127841914,-500.0,0.00024657,2]
[313302610,1707127841924,-500.0,0.00024657,2]
[313302611,1707127841933,-416.71414332,0.00024657,2]
[313302613,1707127841944,-506.36438935,0.00024657,2]
[313302616,1707127841954,-534.79218378,0.00024657,2]
[313302618,1707127841964,-500.0,0.00024657,2]
[313302620,1707127841974,-500.0,0.00024657,2]
[313302622,1707127841983,-506.70682152,0.00024657,2]
[313302624,1707127841992,-507.93133318,0.00024657,2]
[313302625,1707127842001,-500.0,0.00024657,2]
[313302627,1707127842010,-505.39250547,0.00024657,2]
[313302629,1707127842019,-504.19093172,0.00024657,2]
[313302631,1707127842028,-504.48564056,0.00024657,2]
[313302633,1707127842038,-500.0,0.00024657,2]
[313302635,1707127842047,-504.71659176,0.00024657,2]
[313302637,1707127842056,-315.72090325,0.00024657,2]
[313303065,1707127846277,-1724.86,0.00024647,3]
[313303067,1707127846286,-188.60150866,0.00024657,2]
[313303069,1707127846296,-493.29299947,0.00024657,2]
[313303070,1707127846305,-500.0,0.00024657,2]
[313303071,1707127846314,-377.0842098,0.00024657,2]
[313303072,1707127846325,-648.58723629,0.00024657,2]
[313303073,1707127846334,-500.0,0.00024657,2]
[313303074,1707127846343,-508.10637719,0.00024657,2]
[313303075,1707127846352,-570.76699323,0.00024657,2]
[313303076,1707127846361,-500.0,0.00024657,2]
[313303077,1707127846371,-500.0,0.00024657,2]
[313303078,1707127846380,-500.0,0.00024657,2]
[313303080,1707127846389,-516.51,0.00024657,2]
[313303082,1707127846398,-500.0,0.00024657,2]
[313303084,1707127846407,-500.0,0.00024657,2]
[313303086,1707127846416,-500.0,0.00024657,2]
[313303088,1707127846426,-508.91125718,0.00024657,2]
[313303090,1707127846435,-500.0,0.00024657,2]
[313303092,1707127846444,-258.58735297,0.00024657,2]
[313303094,1707127846452,-86.34196807,0.00024657,2]
[313306875,1707128911589,16903.72598426,0.000201,6]
[313306876,1707128942099,5557.25402371,0.000181,4]
[313306877,1707128967500,2539.01,0.00017,3]
[313306891,1707129032275,-1859.0329583,0.00016307,2]
[313306892,1707129032285,-155.01395126,0.00016307,2]
[313306893,1707129032295,-1471.90551121,0.00016308,2]
[313306894,1707129032304,-540.3366748,0.00017,2]
[313306895,1707129032316,-472.61121753,0.00017,2]
[313306896,1707129032325,-680.53747908,0.0002,2]
[313306897,1707129032334,-365.3906686,0.00023094,2]
[313306898,1707129032343,-24900.0,0.00023204,2]
[313306899,1707129032352,-500.0,0.000246,2]
[313306900,1707129032361,-1912.57,0.00024647,3]
[313306901,1707129032371,-1593.81,0.00024647,3]
[313306902,1707129032380,-1328.17,0.00024647,3]
[313306903,1707129032389,-1106.81,0.00024647,3]
[313306904,1707129032398,-156.35277896,0.00024655,2]
[313306905,1707129032408,-717.4770118,0.00024656,2]
[313306906,1707129032418,-500.0,0.00024657,2]
[313306907,1707129032427,-280.57,0.00024657,2]
[313306908,1707129032436,-1253.77,0.00024657,2]
[313306909,1707129032445,-500.0,0.00024657,2]
[313306910,1707129032454,-476.04978718,0.00024657,2]
[313306911,1707129032463,-500.0,0.00024657,2]
[313306912,1707129032473,-500.0,0.00024657,2]
[313306913,1707129032481,-505.91244847,0.00024657,2]
[313306914,1707129032490,-500.0,0.00024657,2]
[313306915,1707129032499,-500.0,0.00024657,2]
[313306916,1707129032508,-507.0828628,0.00024657,2]
[313306917,1707129032517,-507.18065965,0.00024657,2]
[313306918,1707129032526,-500.0,0.00024657,2]
[313306919,1707129032535,-387.21399891,0.00024657,2]
[313306920,1707129032545,-583.0540937,0.00024657,2]
[313306921,1707129032556,-505.17257654,0.00024657,2]
[313306922,1707129032567,-500.0,0.00024657,2]
[313306923,1707129032576,-500.0,0.00024657,2]
[313306924,1707129032585,-354.71346774,0.00024657,2]
[313306925,1707129032595,-266.01971253,0.00024657,2]
[313306926,1707129032604,-500.0,0.00024657,2]
[313306927,1707129032613,-508.51511984,0.00024657,2]
[313306928,1707129032623,-500.0,0.00024657,2]
[313306929,1707129032632,-500.0,0.00024657,2]
[313306930,1707129032643,-500.0,0.00024657,2]
[313306931,1707129032654,-500.0,0.00024657,2]
[313306932,1707129032663,-500.0,0.00024657,2]
[313306933,1707129032672,-500.0,0.00024657,2]
[313306934,1707129032681,-500.0,0.00024657,2]
[313306935,1707129032690,-505.68748614,0.00024657,2]
[313306936,1707129032700,-413.65803193,0.00024657,2]
[313306937,1707129032709,-500.0,0.00024657,2]
[313306938,1707129032719,-509.43641849,0.00024657,2]
[313306939,1707129032728,-500.0,0.00024657,2]
[313306940,1707129032738,-500.0,0.00024657,2]
[313306941,1707129032747,-505.6551453,0.00024657,2]
[313306942,1707129032755,-500.0,0.00024657,2]
[313306943,1707129032765,-346.36571126,0.00024657,2]
[313306944,1707129032774,-611.97452701,0.00024657,2]
[313306945,1707129032783,-500.0,0.00024657,2]
[313306946,1707129032792,-1503.72,0.00024657,2]
[313306947,1707129032801,-500.0,0.00024657,2]
[313306948,1707129032810,-1630.54,0.00024657,2]
[313306949,1707129032819,-500.0,0.00024657,2]
[313306950,1707129032828,-3833.09,0.00024657,2]
[313306951,1707129032838,-2440.28,0.00024657,2]
[313306952,1707129032846,-507.81389843,0.00024657,2]
[313306953,1707129032855,-500.0,0.00024657,2]
[313306954,1707129032865,-500.0,0.00024657,2]
[313306955,1707129032874,-500.0,0.00024657,2]
[313306956,1707129032883,-500.0,0.00024657,2]
[313306957,1707129032893,-500.0,0.00024657,2]
[313306958,1707129032902,-500.0,0.00024657,2]
[313306959,1707129033007,-151.0,0.00024657,2]
[313306960,1707129033017,-500.0,0.00024657,2]
[313306961,1707129033026,-500.0,0.00024657,2]
[313306962,1707129033035,-500.0,0.00024657,2]
[313306963,1707129033044,-721.83,0.00024657,2]
[313306964,1707129033054,-613.82,0.00024657,2]
[313306965,1707129033063,-1669.77,0.00024657,2]
[313306966,1707129033071,-662.43,0.00024657,2]
[313306967,1707129033080,-634.28,0.00024657,2]
[313306968,1707129033089,-500.0,0.00024657,2]
[313306969,1707129033098,-500.0,0.00024657,2]
[313306970,1707129033108,-500.0,0.00024657,2]
[313306971,1707129033117,-500.0,0.00024657,2]
[313306972,1707129033126,-534.02,0.00024657,2]
[313306973,1707129033135,-500.0,0.00024657,2]
[313306974,1707129033144,-500.0,0.00024657,2]
[313306975,1707129033153,-500.0,0.00024657,2]
[313306976,1707129033162,-500.0,0.00024657,2]
[313306977,1707129033171,-596.55,0.00024657,2]
[313306978,1707129033180,-500.0,0.00024657,2]
[313306979,1707129033190,-23.7810721,0.00024657,2]
[313307040,1707129038537,-476.2189279,0.00024657,2]
[313307042,1707129038547,-500.0,0.00024657,2]
[313307044,1707129038562,-2118.40457222,0.00024929,2]
[313307046,1707129038571,-1585.07327189,0.0002493,2]
[313307048,1707129038580,-5848.46839529,0.0002493,2]
[313307050,1707129038589,-500.0,0.00024931,2]
[313307052,1707129038598,-1253.77,0.00024931,2]
[313307054,1707129038607,-500.0,0.00024931,2]
[313307056,1707129038616,-500.0,0.00024931,2]
[313307058,1707129038625,-500.0,0.00024931,2]
[313307060,1707129038636,-500.0,0.00024931,2]
[313307062,1707129038645,-500.0,0.00024931,2]
[313307063,1707129038653,-218.0648327,0.00024931,2]
[313307557,1707129043402,-281.9351673,0.00024931,2]
[313307559,1707129043411,-500.0,0.00024931,2]
[313307560,1707129043421,-503.00953847,0.00024931,2]
[313307562,1707129043430,-14.06484211,0.00024931,2]
[313307900,1707129046337,-908.21571175,0.00024657,2]
[313307913,1707129046453,-532.84428825,0.00024657,2]
[313307916,1707129046462,-316.0665477,0.00024657,2]
[313308609,1707130205969,191.24717746,0.00029,30]
[313308629,1707130232460,-486.03262571,0.00023086,2]
[313309245,1707130238576,-1859.0329583,0.00023085,2]
[313309248,1707130238586,-1201.26193844,0.00023086,2]
[313309250,1707130238595,-566.86253256,0.00023094,2]
[313309251,1707130238605,-549.48552153,0.00024434,2]
[313309253,1707130238613,-3034.86496335,0.000245,3]
[313309257,1707130238638,-155.00930056,0.00023085,2]
[313309259,1707130238647,-1818.40645824,0.000245,3]
[313309572,1707130241771,-1349.22886439,0.000245,3]
[313309573,1707130241783,-1179.31987533,0.000245,3]
[313309574,1707130241794,-490.1510355,0.000245,3]
[313309575,1707130241805,-895.0,0.000245,3]
[313309576,1707130241828,-498.30439027,0.000245,3]
[313309650,1707130243520,-5091.68068144,0.000245,3]
[313309652,1707130243531,-1036.24628758,0.000245,3]
[313309658,1707130243575,-822.05945319,0.000245,3]
[313309748,1707130246593,-3784.73799071,0.000245,3]
[313309749,1707130246603,-152.86835164,0.00024534,2]
[313309750,1707130246614,-1829.31848174,0.00024657,2]
[313309751,1707130246623,-496.66534948,0.00024657,2]
[313309752,1707130246632,-300.0,0.00024657,2]
[313309753,1707130246642,-227.64707964,0.00024657,2]
[313309754,1707130246651,-1012.94789233,0.00024657,2]
[313309755,1707130246660,-1012.94789233,0.00024657,2]
[313309756,1707130246669,-1149.29,0.00024657,2]
[313309757,1707130246678,-504.72572181,0.00024657,2]
[313309758,1707130246687,-1012.94789233,0.00024657,2]
[313309759,1707130246697,-164.13993649,0.00024657,2]
[313309760,1707130246709,-335.86006351,0.00024657,2]
[313309761,1707130246717,-500.0,0.00024657,2]
[313309762,1707130246726,-131.08825122,0.00024657,2]
[313309764,1707130448222,6121.55973479,0.000125,2]
[313309766,1707130495954,1012.94789233,0.000125,2]
[313309767,1707130515962,1035.41686136,0.000125,2]
[313309778,1707130984279,1112.1048174,0.000125,2]
[313309805,1707131000272,1112.1048174,0.000125,2]
[313309807,1707131022265,1112.1048174,0.000125,2]
[313309808,1707131042271,1112.1048174,0.000125,2]
[313309817,1707131058270,1112.1048174,0.000125,2]
[313309827,1707131078275,1112.1048174,0.000125,2]
[313309828,1707131102265,766.13302378,0.000125,2]
[313309879,1707131431710,-346.18174268,0.0002199,2]
[313309880,1707131431722,-309.61304631,0.0002199,2]
[313309881,1707131431735,-1031.49977516,0.0002199,2]
[313309882,1707131431744,-1859.0329583,0.00021991,2]
[313309883,1707131431753,-905.80742125,0.00021992,2]
[313309884,1707131431762,-293.96652096,0.00022,4]
[313309885,1707131431771,-169.58374,0.00023511,2]
[313309886,1707131431780,-155.35093653,0.00023812,2]
[313309887,1707131431790,-182.01968802,0.00023812,2]
[313309888,1707131431799,-331.4482259,0.00023812,2]
[313309889,1707131431808,-155.01860223,0.00023812,2]
[313309890,1707131431817,-167.98778071,0.00023812,2]
[313309891,1707131431826,-484.87543017,0.00023812,2]
[313309945,1707131437715,-2244.31398476,0.00023812,2]
[313309946,1707131437725,-155.01860223,0.00023812,2]
[313309947,1707131437734,-1750.18577497,0.00023812,2]
[313309948,1707131437743,-453.83392897,0.00023812,2]
[313309949,1707131437753,-155.02170304,0.00023813,2]
[313309950,1707131437762,-54.35587806,0.00023813,2]
[313309959,1707131440958,-1155.3970319,0.0002376,2]
[313309960,1707131440970,-2785.82,0.0002376,2]
[313310007,1707131442783,-5651.09338996,0.0002376,2]
[313310008,1707131442794,-4261.0,0.0002376,2]
[313310009,1707131442892,-4353.28408295,0.0002376,2]
[313310042,1707131445777,-1624.42819365,0.0002376,2]
[313310048,1707131445832,-5068.97730154,0.0002376,2]
[313310050,1707131445842,-1687.29456415,0.00023812,2]
[313310052,1707131445851,-908.31222541,0.00023812,2]
[313310054,1707131445860,-1954.73889692,0.00023813,2]
[313310056,1707131445869,-176.68188642,0.00024655,2]
[313310058,1707131445879,-155.02015262,0.00024657,2]
[313310059,1707131445888,-500.0,0.00024657,2]
[313310061,1707131445897,-500.0,0.00024657,2]
[313310063,1707131445906,-507.45552143,0.00024657,2]
[313310064,1707131445915,-569.51350981,0.00024657,2]
[313310066,1707131445924,-371.2448491,0.000247,2]
[313310068,1707131445933,-153.0,0.000247,2]
[313310070,1707131445942,-199.8298339,0.000247,2]
[313310072,1707131445951,-153.0,0.000247,2]
[313310074,1707131445961,-153.0,0.000247,2]
[313310076,1707131445970,-153.0,0.000247,2]
[313310078,1707131445980,-153.0,0.000247,2]
[313310079,1707131445989,-153.0,0.000247,2]
[313310081,1707131445998,-199.8298339,0.000247,2]
[313310083,1707131446007,-153.0,0.000247,2]
[313310085,1707131446017,-153.0,0.000247,2]
[313310087,1707131446027,-199.4378728,0.000247,2]
[313310089,1707131446037,-153.0,0.000247,2]
[313310091,1707131446046,-621.72747933,0.00024763,2]
[313310093,1707131446055,-1600.2,0.00024847,2]
[313310095,1707131446064,-500.0,0.00024847,2]
[313310097,1707131446073,-1549.43,0.00024847,2]
[313310099,1707131446083,-3753.37,0.00024848,2]
[313310101,1707131446092,-500.0,0.00024848,2]
[313310103,1707131446101,-634.83,0.00024848,2]
[313310105,1707131446110,-500.0,0.00024848,2]
[313310107,1707131446121,-500.0,0.00024848,2]
[313310109,1707131446130,-571.69,0.00024848,2]
[313310111,1707131446139,-195.45,0.00024849,2]
[313310113,1707131446149,-500.0,0.00024849,2]
[313310115,1707131446158,-500.0,0.00024849,2]
[313310117,1707131446167,-500.0,0.00024849,2]
[313310120,1707131446179,-1101.4,0.00024849,2]
[313310122,1707131446188,-500.0,0.00024849,2]
[313310123,1707131446197,-500.0,0.00024849,2]
[313310125,1707131446207,-500.0,0.00024849,2]
[313310127,1707131446217,-588.24,0.00024849,2]
[313310128,1707131446226,-607.86,0.00024849,2]
[313310130,1707131446238,-691.76,0.00024849,2]
[313310131,1707131446248,-500.0,0.00024849,2]
[313310132,1707131446257,-511.77,0.00024849,2]
[313310133,1707131446266,-500.0,0.00024849,2]
[313310134,1707131446275,-199.313053,0.00024849,2]
[313310135,1707131446284,-500.0,0.00024849,2]
[313310136,1707131446295,-500.0,0.00024849,2]
[313310137,1707131446304,-1381.02,0.00024849,2]
[313310138,1707131446314,-2338.61,0.00024849,2]
[313310139,1707131446323,-500.0,0.00024849,2]
[313310140,1707131446332,-500.0,0.00024849,2]
[313310141,1707131446341,-500.0,0.00024849,2]
[313310142,1707131446351,-500.0,0.00024849,2]
[313310143,1707131446360,-4365.37981356,0.0002485,2]
[313310150,1707131464366,683.46496987,0.000125,2]
[313310152,1707131525659,156.29772335,0.000125,2]
[313310197,1707132631932,-155.00465014,0.00017745,2]
[313310198,1707132631941,-736.45334185,0.00017746,2]
[313310199,1707132631950,-155.00465014,0.00017835,2]
[313310200,1707132631959,-1859.0329583,0.00017836,2]
[313310201,1707132631968,-1687.29456415,0.00017836,2]
[313310202,1707132631977,-689.74179643,0.00017837,2]
[313310203,1707132631986,-155.00465014,0.00017837,2]
[313310204,1707132631995,-12772.60303929,0.00017845,2]
[313310207,1707132637936,-4681.25617007,0.00017845,2]
[313310208,1707132638044,-66440.11460128,0.00017845,2]
[313310209,1707132638054,-17132.6655527,0.00017846,2]
[313310210,1707132638064,-5850.72782731,0.00018,2]
[313310211,1707132638073,-200.0,0.00018736,2]
[313310212,1707132638083,-1586.31930013,0.00019,2]
[313310213,1707132638092,-151.0,0.00019613,2]
[313310214,1707132638102,-3550.52932006,0.00019999,2]
[313310215,1707132638111,-155.34969608,0.0002,2]
[313310216,1707132638120,-1201.19414152,0.0002,2]
[313310217,1707132638130,-680.53747908,0.0002,2]
[313310218,1707132638139,-323.86980983,0.0002,2]
[313310219,1707132638148,-280.0,0.0002061,2]
[313310220,1707132638157,-151.0,0.00021227,2]
[313310221,1707132638167,-736.45334182,0.00021356,2]
[313310222,1707132638177,-166.666666,0.00021918,2]
[313310223,1707132638186,-326.28860186,0.00022,2]
[313310224,1707132638196,-166.666666,0.00022431,2]
[313310225,1707132638205,-274.95719598,0.00022498,2]
[313310226,1707132638215,-391.0,0.00022671,7]
[313310227,1707132638225,-1072.36168373,0.00022749,2]
[313310228,1707132638234,-151.0,0.00022841,2]
[313310229,1707132638243,-166.666666,0.00022944,2]
[313310230,1707132638253,-9963.35829512,0.00023,2]
[313310231,1707132638262,-500.0,0.00023088,2]
[313310232,1707132638271,-500.0,0.00023088,2]
[313310233,1707132638280,-500.0,0.00023088,2]
[313310234,1707132638290,-500.0,0.00023088,2]
[313310235,1707132638299,-500.0,0.00023088,2]
[313310236,1707132638308,-500.0,0.00023088,2]
[313310237,1707132638318,-214.11458046,0.00023088,2]
[313310238,1707132638327,-367.98197927,0.00023088,2]
[313310239,1707132638336,-500.0,0.00023088,2]
[313310240,1707132638364,-500.0,0.00023088,2]
[313310241,1707132638374,-500.0,0.00023088,2]
[313310242,1707132638384,-500.0,0.00023088,2]
[313310243,1707132638394,-634.83186165,0.00023088,2]
[313310244,1707132638409,-414.12473517,0.00023088,2]
[313310245,1707132638419,-500.0,0.00023088,2]
[313310246,1707132638429,-500.0,0.00023088,2]
[313310247,1707132638438,-500.0,0.00023088,2]
[313310248,1707132638448,-500.0,0.00023088,2]
[313310249,1707132638458,-500.0,0.00023088,2]
[313310250,1707132638468,-500.0,0.00023088,2]
[313310251,1707132638478,-500.0,0.00023088,2]
[313310252,1707132638489,-500.0,0.00023088,2]
[313310253,1707132638498,-500.0,0.00023088,2]
[313310254,1707132638507,-500.0,0.00023088,2]
[313310255,1707132638517,-274.21354754,0.00023088,2]
[313310256,1707132638527,-500.0,0.00023088,2]
[313310257,1707132638536,-500.0,0.00023088,2]
[313310258,1707132638546,-500.0,0.00023088,2]
[313310259,1707132638556,-500.0,0.00023088,2]
[313310260,1707132638569,-500.0,0.00023088,2]
[313310261,1707132638578,-500.0,0.00023088,2]
[313310262,1707132638588,-500.0,0.00023088,2]
[313310263,1707132638598,-550.0,0.00023088,2]
[313310264,1707132638611,-500.0,0.00023088,2]
[313310265,1707132638620,-500.0,0.00023088,2]
[313310266,1707132638630,-500.0,0.00023088,2]
[313310267,1707132638640,-500.0,0.00023088,2]
[313310268,1707132638650,-500.0,0.00023088,2]
[313310269,1707132638659,-500.0,0.00023088,2]
[313310270,1707132638669,-500.0,0.00023088,2]
[313310271,1707132638680,-500.0,0.00023088,2]
[313310272,1707132638689,-500.0,0.00023088,2]
[313310273,1707132638699,-240.0,0.00023088,2]
[313310274,1707132638709,-550.0,0.00023088,2]
[313310275,1707132638719,-500.0,0.00023088,2]
[313310276,1707132638728,-211.62582033,0.00023088,2]
[313310277,1707132638738,-500.0,0.00023088,2]
[313310278,1707132638748,-500.0,0.00023088,2]
[313310279,1707132638757,-500.0,0.00023088,2]
[313310280,1707132638767,-500.0,0.00023088,2]
[313310281,1707132638776,-500.0,0.00023088,2]
[313310282,1707132638786,-500.0,0.00023088,2]
[313310283,1707132638796,-500.0,0.00023088,2]
[313310284,1707132638805,-500.0,0.00023088,2]
[313310285,1707132638815,-151.0,0.00023089,2]
[313310286,1707132638824,-151.0,0.00023089,2]
[313310287,1707132638834,-151.0,0.00023089,2]
[313310288,1707132638843,-151.0,0.00023089,2]
[313310289,1707132638853,-151.0,0.00023089,2]
[313310290,1707132638862,-151.0,0.00023089,2]
[313310291,1707132638872,-151.0,0.00023089,2]
[313310292,1707132638881,-151.0,0.00023089,2]
[313310293,1707132638891,-153.01737,0.00023089,2]
[313310294,1707132638900,-1516.26268,0.00023089,2]
[313310295,1707132638909,-1516.26268,0.00023089,2]
[313310296,1707132638920,-1516.26268,0.00023089,2]
[313310297,1707132638942,-1516.26268,0.00023089,2]
[313310298,1707132638963,-1516.26268,0.00023089,2]
[313310299,1707132638985,-1516.26268,0.00023089,2]
[313310300,1707132639007,-153.948692,0.0002309,2]
[313310301,1707132639028,-151.34148,0.0002309,2]
[313310302,1707132639049,-151.0,0.0002309,2]
[313310303,1707132639073,-249.961883,0.0002309,2]
[313310304,1707132639097,-151.0,0.0002309,2]
[313310305,1707132639114,-151.0,0.0002309,2]
[313310306,1707132639124,-151.0,0.0002309,2]
[313310307,1707132639134,-151.0,0.0002309,2]
[313310308,1707132639144,-151.0,0.0002309,2]